bitfinex/quotes_BTCUSD_20241013
["timestamp","ask_amount","ask_price","bid_price","bid_amount"]
[1728818243207,3.30860308,62801.0,62800.0,4.01293719]
[1728818243432,3.31955578,62801.0,62800.0,4.01293719]
[1728818243638,3.33355578,62801.0,62800.0,4.01293719]
[1728818243849,3.10154708,62801.0,62800.0,4.01293719]
[1728818244071,2.95874237,62801.0,62800.0,4.01293719]
[1728818244501,3.10154708,62801.0,62800.0,4.01293719]
[1728818244717,2.95874237,62801.0,62800.0,4.01293719]
[1728818245346,2.7922653,62801.0,62800.0,4.01293719]
[1728818245623,2.7922653,62801.0,62800.0,4.18543719]
[1728818245624,1.5282653,62801.0,62800.0,4.18543719]
[1728818245856,1.25252616,62801.0,62800.0,4.18543719]
[1728818246124,1.32394314,62801.0,62800.0,4.18543719]
[1728818246373,1.27213891,62801.0,62800.0,4.18543719]
[1728818246591,1.22452616,62801.0,62800.0,4.18543719]
[1728818246826,1.25152616,62801.0,62800.0,4.18543719]
[1728818247056,1.53325838,62801.0,62800.0,4.01293719]
[1728818247285,1.41423749,62801.0,62800.0,4.01293719]
[1728818247532,1.51123749,62801.0,62800.0,4.01293719]
[1728818247760,1.51223749,62801.0,62800.0,4.01293719]
[1728818248696,1.50523749,62801.0,62800.0,4.01293719]
[1728818249152,1.49328777,62801.0,62800.0,4.01293719]
[1728818249407,1.60728304,62801.0,62800.0,4.18893719]
[1728818249623,1.29957644,62801.0,62800.0,4.18893719]
[1728818249875,1.38497464,62801.0,62800.0,4.18893719]
[1728818250522,1.32757644,62801.0,62800.0,4.18893719]
[1728818250766,1.24717248,62801.0,62800.0,4.18893719]
[1728818250989,1.26117248,62801.0,62800.0,4.18893719]
[1728818251206,1.22757644,62801.0,62800.0,4.18893719]
[1728818251413,1.21357644,62801.0,62800.0,4.18893719]
[1728818251857,1.22257644,62801.0,62800.0,4.18893719]
[1728818252137,1.32257644,62801.0,62800.0,4.18893719]
[1728818252352,1.04235243,62801.0,62800.0,4.18893719]
[1728818252798,1.05535243,62801.0,62800.0,4.18693719]
[1728818253279,1.06835243,62801.0,62800.0,4.18893719]
[1728818253506,1.05935243,62801.0,62800.0,4.18893719]
[1728818253762,1.03335243,62801.0,62800.0,4.18893719]
[1728818253996,1.05135243,62801.0,62800.0,4.18893719]
[1728818254235,0.54171243,62801.0,62800.0,4.18893719]
[1728818254468,0.96511243,62801.0,62800.0,4.09673719]
[1728818254700,0.83391243,62801.0,62800.0,4.01493719]
[1728818254927,0.86943985,62801.0,62800.0,4.01593719]
[1728818255392,0.86943985,62801.0,62800.0,4.01493719]
[1728818255628,0.86943985,62801.0,62800.0,4.04885719]
[1728818255629,0.36943985,62801.0,62800.0,4.04885719]
[1728818255814,0.53852685,62801.0,62800.0,4.04885719]
[1728818256102,0.53552685,62801.0,62800.0,4.04885719]
[1728818256351,0.53552685,62801.0,62800.0,4.2330812]
[1728818256581,0.53716485,62801.0,62800.0,4.2340812]
[1728818256806,0.53716485,62801.0,62800.0,4.2330812]
[1728818257022,0.03816542,62801.0,62800.0,4.2340812]
[1728818257243,0.03816542,62801.0,62800.0,4.2380812]
[1728818257458,0.03816542,62801.0,62800.0,4.2370812]
[1728818257459,0.001638,62801.0,62800.0,4.2370812]
[1728818257681,0.001638,62801.0,62800.0,4.04485719]
[1728818257908,0.001638,62801.0,62800.0,4.04685719]
[1728818258645,0.002638,62801.0,62800.0,4.05085719]
[1728818258874,0.003638,62801.0,62800.0,4.05988023]
[1728818259115,0.002638,62801.0,62800.0,4.05588023]
[1728818259349,0.003638,62801.0,62800.0,4.05788023]
[1728818259572,0.001638,62801.0,62800.0,4.05788023]
[1728818260034,0.002638,62801.0,62800.0,4.05788023]
[1728818260459,0.003638,62801.0,62800.0,4.06188023]
[1728818260901,0.002638,62801.0,62800.0,4.05788023]
[1728818261113,0.002638,62801.0,62800.0,4.06188023]
[1728818261353,0.003638,62801.0,62800.0,4.06188023]
[1728818261569,0.002638,62801.0,62800.0,4.05788023]
[1728818261797,0.001638,62801.0,62800.0,4.05788023]
[1728818262023,0.003638,62801.0,62800.0,4.06188023]
[1728818262490,0.002638,62801.0,62800.0,4.06188023]
[1728818262919,0.003638,62801.0,62800.0,4.06188023]
[1728818263575,0.002638,62801.0,62800.0,4.05788023]
[1728818264208,0.003638,62801.0,62800.0,4.06188023]
[1728818264676,0.003638,62801.0,62800.0,4.22310424]
[1728818264916,0.003638,62801.0,62800.0,4.24610424]
[1728818270864,0.5,62803.0,62802.0,0.002]
[1728818271504,0.5,62803.0,62802.0,0.03392]
[1728818271720,0.5,62803.0,62802.0,0.03592]
[1728818271930,0.501,62803.0,62802.0,0.03992]
[1728818272373,0.5,62814.0,62813.0,0.002]
[1728818272610,0.00164,62818.0,62817.0,0.002]
[1728818272864,0.00164,62818.0,62804.0,0.03192]
[1728818272865,0.22963892,62819.0,62818.0,0.002]
[1728818273289,0.43498184,62827.0,62826.0,0.002]
[1728818273731,0.19643791,62827.0,62826.0,0.002]
[1728818273969,0.52493791,62827.0,62826.0,0.002]
[1728818274832,0.5,62820.0,62819.0,0.002]
[1728818275061,0.5,62820.0,62819.0,0.04299569]
[1728818275274,0.5,62820.0,62819.0,0.03392]
[1728818275754,0.52493791,62827.0,62826.0,0.002]
[1728818277370,0.52593791,62827.0,62826.0,0.04092]
[1728818277845,0.52493791,62827.0,62826.0,0.03392]
[1728818278084,0.52593791,62827.0,62826.0,0.04492]
[1728818278309,0.52693791,62827.0,62826.0,0.05192]
[1728818278550,0.52693791,62827.0,62826.0,0.04992]
[1728818278770,0.52593791,62827.0,62826.0,0.04492]
[1728818279002,0.52693791,62827.0,62826.0,0.05292]
[1728818279219,0.5,62827.0,62826.0,0.03392]
[1728818279665,0.501,62827.0,62826.0,0.04292]
[1728818280574,0.501,62827.0,62826.0,0.04492]
[1728818280821,0.501,62827.0,62826.0,0.20614401]
[1728818281041,0.502,62827.0,62826.0,0.21814401]
[1728818281499,0.002,62827.0,62826.0,0.21814401]
[1728818282435,0.001638,62834.0,62827.0,0.03592]
[1728818282680,0.001638,62834.0,62827.0,0.19714401]
[1728818283197,0.001638,62834.0,62827.0,0.21617673]
[1728818283423,0.0016,62828.0,62827.0,0.19714401]
[1728818284089,0.0016,62828.0,62827.0,0.21617673]
[1728818284305,0.0016,62828.0,62827.0,0.23017673]
[1728818284541,0.0016,62828.0,62827.0,0.20714401]
[1728818284750,0.0016,62828.0,62827.0,0.22008519]
[1728818285214,0.0016,62828.0,62827.0,0.23408519]
[1728818285449,0.0016,62828.0,62827.0,0.23208519]
[1728818285680,0.0016,62828.0,62827.0,0.22608519]
[1728818286140,0.0016,62828.0,62827.0,0.23808519]
[1728818287121,0.0016,62828.0,62827.0,0.23608519]
[1728818287341,0.0016,62828.0,62827.0,0.23808519]
[1728818292716,0.0016,62828.0,62827.0,0.24008519]
[1728818295296,0.0016,62828.0,62827.0,0.23808519]
[1728818295995,0.04387431,62828.0,62827.0,0.23608519]
[1728818296223,0.0016,62828.0,62827.0,0.23808519]
[1728818296447,0.04387399,62828.0,62827.0,0.23808519]
[1728818296659,0.0016,62828.0,62827.0,0.23808519]
[1728818296878,0.04387463,62828.0,62827.0,0.23608519]
[1728818297116,0.0016,62828.0,62827.0,0.23808519]
[1728818297338,0.04387399,62828.0,62827.0,0.23608519]
[1728818297549,0.0016,62828.0,62827.0,0.23808519]
[1728818297799,0.62127447,62828.0,62827.0,0.06792]
[1728818298025,0.579,62828.0,62827.0,0.06792]
[1728818298235,0.62126581,62828.0,62827.0,0.06792]
[1728818298932,0.62126581,62828.0,62827.0,0.04592]
[1728818299382,0.62226581,62828.0,62827.0,0.04192]
[1728818299603,0.71586581,62828.0,62827.0,0.002]
[1728818299813,0.71686581,62828.0,62827.0,0.009]
[1728818300288,0.5774,62821.0,62820.0,0.03392]
[1728818300509,0.71426484,62821.0,62820.0,0.03392]
[1728818300733,0.71426484,62821.0,62820.0,0.002]
[1728818301656,0.71426484,62821.0,62820.0,0.013]
[1728818302363,0.71526484,62821.0,62820.0,0.022]
[1728818304083,0.71526484,62821.0,62820.0,0.02]
[1728818304322,0.71526484,62821.0,62820.0,0.022]
[1728818304323,0.87648885,62821.0,62820.0,0.022]
[1728818304555,0.87648885,62821.0,62820.0,0.011819]
[1728818304964,0.87548885,62821.0,62820.0,0.010819]
[1728818305437,0.87648885,62821.0,62820.0,0.008819]
[1728818305668,0.87548885,62821.0,62820.0,0.002819]
[1728818306138,0.87648885,62821.0,62820.0,0.008819]
[1728818306363,0.87648885,62821.0,62820.0,0.040739]
[1728818306583,0.87648885,62821.0,62820.0,0.038739]
[1728818306817,0.87648885,62821.0,62820.0,0.046739]
[1728818307258,0.87648885,62821.0,62820.0,0.014819]
[1728818307704,0.88148885,62821.0,62820.0,0.014819]
[1728818308165,0.172,62820.0,62819.0,0.000819]
[1728818308379,0.33322401,62820.0,62819.0,0.000819]
[1728818308615,0.37527378,62820.0,62819.0,0.000819]
[1728818310018,0.38027378,62820.0,62819.0,0.000819]
[1728818310238,0.38827378,62820.0,62819.0,0.000819]
[1728818310687,0.38527378,62820.0,62819.0,0.000819]
[1728818310916,0.38827378,62820.0,62819.0,0.000819]
[1728818312230,0.41321357,62820.0,62819.0,0.000819]
[1728818319208,0.38827378,62820.0,62819.0,0.000819]
[1728818321770,0.47710116,62820.0,62819.0,0.000819]
[1728818322210,0.50204113,62820.0,62819.0,0.000819]
[1728818322428,0.41321375,62820.0,62819.0,0.000819]
[1728818324801,0.41321375,62820.0,62819.0,0.002819]
[1728818325520,0.75198974,62820.0,62819.0,0.002819]
[1728818325748,0.74698974,62820.0,62819.0,0.002819]
[1728818326424,0.74698974,62820.0,62819.0,0.000819]
[1728818327582,0.74862774,62820.0,62819.0,0.000819]
[1728818328276,0.74362774,62820.0,62819.0,0.000819]
[1728818328511,0.74862774,62820.0,62819.0,0.000819]
[1728818328720,0.74562774,62820.0,62819.0,0.000819]
[1728818328943,0.91185175,62820.0,62819.0,0.000819]
[1728818329246,0.88991178,62820.0,62819.0,0.000819]
[1728818329649,0.88691178,62820.0,62819.0,0.000819]
[1728818329862,0.88191178,62820.0,62819.0,0.000819]
[1728818330793,0.88491178,62820.0,62819.0,0.000819]
[1728818331019,1.09640296,62820.0,62819.0,0.000819]
[1728818331257,1.09940296,62820.0,62819.0,0.000819]
[1728818331518,1.09640296,62820.0,62819.0,0.000819]
[1728818331943,1.10140296,62820.0,62819.0,0.000819]
[1728818332161,1.12634395,62820.0,62819.0,0.000819]
[1728818332375,2.30385277,62820.0,62819.0,0.000819]
[1728818332590,0.6696,62802.0,62800.0,4.04585629]
[1728818333106,0.6696,62802.0,62800.0,4.04486719]
[1728818333352,0.86076766,62802.0,62800.0,4.01293719]
[1728818333595,0.96076766,62802.0,62800.0,4.01293719]
[1728818333817,1.00261369,62802.0,62800.0,4.01293719]
[1728818335176,1.00561369,62802.0,62801.0,0.010362]
[1728818335914,1.00461369,62802.0,62801.0,0.001362]
[1728818336129,1.10567506,62802.0,62801.0,0.002362]
[1728818336570,1.00461369,62802.0,62801.0,0.002362]
[1728818339177,0.97967004,62802.0,62801.0,0.002362]
[1728818339630,0.97967004,62802.0,62801.0,0.004362]
[1728818339871,0.97967004,62802.0,62801.0,0.002362]
[1728818340782,0.97967004,62802.0,62801.0,0.003181]
[1728818341195,0.97967004,62802.0,62801.0,0.005181]
[1728818342084,1.00461622,62802.0,62801.0,0.005181]
[1728818343368,1.00461622,62802.0,62801.0,0.005141]
[1728818343825,1.00461622,62802.0,62801.0,0.003141]
[1728818344050,1.00461622,62802.0,62801.0,0.005141]
[1728818345409,1.00461622,62802.0,62801.0,0.003141]
[1728818346562,0.74839221,62802.0,62801.0,0.005141]
[1728818347030,0.70654618,62802.0,62801.0,0.005141]
[1728818347262,0.74873416,62802.0,62801.0,0.005141]
[1728818349091,0.72378798,62802.0,62801.0,0.005141]
[1728818352140,0.74873365,62802.0,62801.0,0.005141]
[1728818359179,0.72378798,62802.0,62801.0,0.005141]
[1728818359643,0.62378798,62802.0,62801.0,0.005141]
[1728818359911,0.54418798,62802.0,62801.0,0.005141]
[1728818360136,0.502,62802.0,62801.0,0.005141]
[1728818361105,0.502,62802.0,62801.0,0.037071]
[1728818362029,0.502,62802.0,62801.0,0.036071]
[1728818362260,0.5,62802.0,62801.0,0.036071]
[1728818362484,0.501,62802.0,62801.0,0.044071]
[1728818362713,0.501,62802.0,62801.0,0.036071]
[1728818362943,0.501,62802.0,62801.0,0.039071]
[1728818363374,0.5,62802.0,62801.0,0.036071]
[1728818363639,0.5,62802.0,62801.0,0.041071]
[1728818363872,0.5,62802.0,62801.0,0.036071]
[1728818364308,0.524942,62808.0,62807.0,0.002]
[1728818364526,0.5,62808.0,62807.0,0.002]
[1728818364750,0.54065341,62808.0,62807.0,0.002]
[1728818365851,0.54065341,62808.0,62807.0,0.004]
[1728818366275,0.62115341,62808.0,62807.0,0.004]
[1728818368340,0.62115341,62808.0,62807.0,0.002]
[1728818368579,0.54465341,62808.0,62807.0,0.002]
[1728818368808,0.54665341,62808.0,62807.0,0.002]
[1728818369057,0.54265341,62808.0,62807.0,0.002]
[1728818369298,0.54365341,62808.0,62807.0,0.002]
[1728818369516,0.54365341,62808.0,62807.0,0.16322401]
[1728818369727,0.54365341,62808.0,62807.0,0.19615401]
[1728818369966,0.54465341,62808.0,62807.0,0.19615401]
[1728818370178,0.04065341,62808.0,62807.0,0.19415401]
[1728818370412,0.04065341,62808.0,62807.0,0.19815401]
[1728818370625,0.5,62815.0,62814.0,0.002]
[1728818373029,0.502,62815.0,62814.0,0.002]
[1728818373257,0.5,62815.0,62814.0,0.002]
[1728818373499,0.5,62815.0,62814.0,0.005]
[1728818374412,0.54079621,62815.0,62814.0,0.005]
[1728818375074,0.54079621,62815.0,62814.0,0.009]
[1728818376332,0.62339621,62815.0,62814.0,0.009]
[1728818376486,0.71849621,62815.0,62814.0,0.009]
[1728818377764,0.72013421,62815.0,62814.0,0.009]
[1728818378836,0.72013421,62815.0,62814.0,0.005]
[1728818379274,0.72013421,62815.0,62814.0,0.009]
[1728818379701,0.72013421,62815.0,62814.0,0.002]
[1728818380134,0.5826,62806.0,62805.0,0.002]
[1728818380386,0.5826,62806.0,62802.0,0.04188788]
[1728818380601,0.5826,62806.0,62805.0,0.002]
[1728818381007,0.5826,62806.0,62802.0,0.03193]
[1728818381227,0.5826,62806.0,62805.0,0.002]
[1728818382182,0.5836,62806.0,62805.0,0.014]
[1728818382410,0.5846,62806.0,62805.0,0.026]
[1728818383246,0.5846,62806.0,62805.0,0.05793]
[1728818384021,0.5846,62806.0,62805.0,0.05593]
[1728818384220,0.5846,62806.0,62805.0,0.026]
[1728818384462,0.5846,62806.0,62805.0,0.05793]
[1728818384702,0.5846,62806.0,62805.0,0.026]
[1728818385370,0.5846,62806.0,62805.0,0.05793]
[1728818389476,0.6758,62806.0,62805.0,0.05793]
[1728818389700,0.6758,62806.0,62805.0,0.05593]
[1728818389919,0.6758,62806.0,62805.0,0.05793]
[1728818390609,0.6758,62806.0,62805.0,0.05593]
[1728818392120,0.6748,62806.0,62805.0,0.04393]
[1728818392561,0.6748,62806.0,62805.0,0.04593]
[1728818393036,0.6758,62806.0,62805.0,0.05593]
[1728818393261,0.6758,62806.0,62805.0,0.05793]
[1728818393917,0.6758,62806.0,62805.0,0.05593]
[1728818394141,0.6758,62806.0,62805.0,0.05793]
[1728818395244,0.83702401,62806.0,62805.0,0.05593]
[1728818395714,0.87779962,62806.0,62805.0,0.024]
[1728818396146,0.1748,62805.0,62802.0,0.002]
[1728818396356,0.54077561,62806.0,62805.0,0.002]
[1728818396580,0.54077561,62806.0,62805.0,0.015]
[1728818396581,0.502,62806.0,62805.0,0.015]
[1728818396796,0.83702401,62806.0,62805.0,0.01]
[1728818397025,0.83602401,62806.0,62805.0,0.007]
[1728818397464,0.83602401,62806.0,62805.0,0.005]
[1728818398590,0.66122401,62806.0,62801.0,0.002141]
[1728818398805,0.33302401,62805.0,62801.0,0.004141]
[1728818399022,0.1718,62804.0,62802.0,0.002]
[1728818399236,0.33302401,62803.0,62802.0,0.002]
[1728818399463,0.16122401,62803.0,62802.0,0.002]
[1728818399727,0.16122401,62803.0,62802.0,0.01]
[1728818399941,0.33302401,62803.0,62802.0,0.01]
[1728818400148,0.33302401,62803.0,62802.0,0.002]
[1728818400588,0.33502401,62803.0,62802.0,0.02]
[1728818402172,0.3599686,62803.0,62802.0,0.018]
[1728818402405,0.3599686,62803.0,62802.0,0.02]
[1728818403257,0.3599686,62803.0,62802.0,0.018]
[1728818403711,0.3599686,62803.0,62802.0,0.02]
[1728818404355,0.23943164,62803.0,62802.0,0.02]
[1728818404788,0.19874459,62803.0,62802.0,0.018]
[1728818405011,0.19874459,62803.0,62802.0,0.02]
[1728818405655,0.3599686,62803.0,62802.0,0.018]
[1728818405861,0.40064951,62803.0,62802.0,0.018]
[1728818406313,0.59637846,62803.0,62802.0,0.018]
[1728818406317,0.66583669,62803.0,62802.0,0.01]
[1728818406533,0.2768,62802.0,62801.0,0.002141]
[1728818406747,0.50926989,62802.0,62801.0,0.002141]
[1728818407016,0.57292874,62802.0,62801.0,0.002141]
[1728818407239,0.028,62801.0,62800.0,3.83177819]
[1728818407457,0.53226239,62801.0,62800.0,3.83177819]
[1728818407698,0.50164233,62801.0,62800.0,3.83177819]
[1728818408657,0.54909603,62801.0,62800.0,3.83177819]
[1728818408889,0.50964233,62801.0,62800.0,3.83277819]
[1728818409351,0.55709627,62801.0,62800.0,3.83277819]
[1728818409565,0.50964233,62801.0,62800.0,3.83277819]
[1728818410031,0.51564233,62801.0,62800.0,3.83377819]
[1728818413297,0.49264233,62801.0,62800.0,3.83377819]
[1728818416325,0.67701204,62801.0,62800.0,3.83377819]
[1728818417416,0.70196087,62801.0,62800.0,3.83377819]
[1728818419150,0.67701204,62801.0,62800.0,3.83377819]
[1728818419593,0.51564233,62801.0,62800.0,3.83377819]
[1728818422153,0.54059063,62801.0,62800.0,3.83377819]
[1728818424883,0.54223063,62801.0,62800.0,3.83377819]
[1728818428986,0.51728233,62801.0,62800.0,3.83377819]
[1728818429482,0.49428233,62801.0,62800.0,3.83377819]
[1728818431296,0.67865204,62801.0,62800.0,3.83377819]
[1728818431534,0.74977561,62801.0,62800.0,3.83377819]
[1728818431758,0.66834475,62801.0,62800.0,3.83377819]
[1728818432217,2.20734044,62801.0,62800.0,3.83377819]
[1728818432454,2.23229007,62801.0,62800.0,3.83377819]
[1728818432676,2.13745865,62801.0,62800.0,3.83377819]
[1728818433154,2.13145865,62801.0,62800.0,3.83177819]
[1728818433379,2.12345865,62801.0,62800.0,3.83277819]
[1728818433644,2.26699793,62801.0,62800.0,3.83277819]
[1728818433873,2.25299793,62801.0,62800.0,3.83277819]
[1728818434094,2.26699793,62801.0,62800.0,3.83277819]
[1728818434572,2.14845865,62801.0,62800.0,3.83277819]
[1728818435450,2.13745865,62801.0,62800.0,3.83177819]
[1728818435913,2.15145865,62801.0,62800.0,3.83177819]
[1728818436139,2.15163005,62801.0,62800.0,3.83177819]
[1728818438988,2.12668042,62801.0,62800.0,3.83177819]
[1728818440506,2.26917544,62801.0,62800.0,3.83177819]
[1728818441460,2.37238361,62801.0,62800.0,3.83177819]
[1728818441690,2.26930912,62801.0,62800.0,3.83177819]
[1728818442131,2.29425849,62801.0,62800.0,3.83177819]
[1728818442359,2.39732668,62801.0,62800.0,3.83177819]
[1728818442570,2.29427125,62801.0,62800.0,3.83177819]
[1728818443015,2.79427125,62801.0,62800.0,3.83177819]
[1728818443903,2.89737195,62801.0,62800.0,3.83177819]
[1728818444371,2.88337195,62801.0,62800.0,3.83177819]
[1728818445327,2.86958674,62801.0,62800.0,3.83177819]
[1728818445754,2.89758674,62801.0,62800.0,3.83177819]
[1728818446243,2.88358674,62801.0,62800.0,3.83177819]
[1728818446697,2.89758674,62801.0,62800.0,3.83177819]
[1728818448103,3.05807917,62801.0,62800.0,3.83177819]
[1728818449030,3.0331298,62801.0,62800.0,3.83177819]
[1728818449252,2.87263737,62801.0,62800.0,3.83177819]
[1728818449937,2.87290088,62801.0,62800.0,3.83177819]
[1728818450606,3.03349369,62801.0,62800.0,3.83177819]
[1728818451074,2.71153117,62801.0,62800.0,3.83177819]
[1728818452259,2.73648042,62801.0,62800.0,3.83177819]
[1728818454522,2.73680944,62801.0,62800.0,3.83177819]
[1728818457767,2.54200944,62801.0,62800.0,3.83177819]
[1728818457996,1.27800944,62801.0,62800.0,3.83177819]
[1728818458229,1.17477883,62801.0,62800.0,3.83177819]
[1728818459139,1.14982958,62801.0,62800.0,3.83177819]
[1728818460588,1.00196052,62801.0,62800.0,3.83177819]
[1728818460820,1.00696052,62801.0,62800.0,3.83177819]
[1728818461023,1.00196052,62801.0,62800.0,3.83177819]
[1728818461272,1.00696052,62801.0,62800.0,3.83177819]
[1728818461418,1.14484078,62801.0,62800.0,3.83177819]
[1728818461616,1.1448433,62801.0,62800.0,3.83177819]
[1728818463530,1.16979215,62801.0,62800.0,3.83177819]
[1728818466936,1.16983408,62801.0,62800.0,3.83177819]
[1728818468837,1.02194475,62801.0,62800.0,3.83177819]
[1728818469045,0.9969959,62801.0,62800.0,3.83377819]
[1728818469450,0.89262405,62801.0,62800.0,3.83377819]
[1728818469697,0.854808,62801.0,62800.0,3.83377819]
[1728818469916,0.80717504,62801.0,62800.0,3.83377819]
[1728818470561,0.71717504,62801.0,62800.0,3.83377819]
[1728818470751,0.69317504,62801.0,62800.0,3.83377819]
[1728818470988,0.53695103,62801.0,62800.0,3.83477819]
[1728818471223,0.54395103,62801.0,62800.0,3.83477819]
[1728818472081,0.56889572,62801.0,62800.0,3.83477819]
[1728818472516,9.56889572,62801.0,62800.0,3.83477819]
[1728818474042,9.06889572,62801.0,62800.0,3.83477819]
[1728818475157,9.06889572,62801.0,62800.0,3.83277819]
[1728818475378,9.06889572,62801.0,62800.0,3.83477819]
[1728818475844,9.06889572,62801.0,62800.0,3.92597819]
[1728818476061,9.06889572,62801.0,62800.0,4.00607819]
[1728818476275,9.06889572,62801.0,62800.0,4.03800819]
[1728818476715,9.06389572,62801.0,62800.0,4.03700819]
[1728818476928,9.05689572,62801.0,62800.0,4.03700819]
[1728818477134,9.06189572,62801.0,62800.0,4.03800819]
[1728818477551,9.05689572,62801.0,62800.0,4.03700819]
[1728818477774,9.05789572,62801.0,62800.0,4.04100819]
[1728818478006,9.05889572,62801.0,62800.0,4.04700819]
[1728818479172,9.03295103,62801.0,62800.0,4.04300819]
[1728818479378,9.03295103,62801.0,62800.0,4.04700819]
[1728818479798,9.03295103,62801.0,62800.0,4.04300819]
[1728818480026,9.03295103,62801.0,62800.0,4.04500819]
[1728818480251,9.03195103,62801.0,62800.0,4.03900819]
[1728818480678,9.03295103,62801.0,62800.0,4.04500819]
[1728818481090,9.03295103,62801.0,62800.0,4.04300819]
[1728818481305,9.03195103,62801.0,62800.0,4.03700819]
[1728818481515,9.03195103,62801.0,62800.0,4.03900819]
[1728818481721,9.03195103,62801.0,62800.0,4.04300819]
[1728818481945,9.03195103,62801.0,62800.0,3.96290819]
[1728818483777,9.03195103,62801.0,62800.0,3.93097819]
[1728818484867,9.03195103,62801.0,62800.0,3.92697819]
[1728818485083,9.03195103,62801.0,62800.0,3.92997819]
[1728818485294,9.03195103,62801.0,62800.0,3.92797819]
[1728818485740,9.03195103,62801.0,62800.0,3.92597819]
[1728818486175,9.03195103,62801.0,62800.0,3.92897819]
[1728818488175,9.03195103,62801.0,62800.0,3.91500619]
[1728818490462,9.03195103,62801.0,62800.0,3.82380619]
[1728818496787,9.19317504,62801.0,62800.0,3.82380619]
[1728818497472,0.004,62808.0,62800.0,3.82380619]
[1728818497473,0.07121341,62826.0,62807.0,0.005]
[1728818497710,0.07121341,62826.0,62800.0,4.2003202]
[1728818497711,0.5,62824.0,62818.0,0.007]
[1728818497925,0.5,62824.0,62818.0,0.0189427]
[1728818498172,0.5,62824.0,62818.0,0.0139427]
[1728818498414,0.5,62824.0,62818.0,0.0169427]
[1728818498628,0.5,62824.0,62818.0,0.0189427]
[1728818498858,0.5,62824.0,62818.0,0.0139427]
[1728818499066,0.5,62824.0,62818.0,0.0189427]
[1728818499282,0.5,62824.0,62818.0,0.0199427]
[1728818499492,0.5,62824.0,62818.0,0.0189427]
[1728818499717,0.5,62824.0,62818.0,0.0239427]
[1728818499913,0.002638,62819.0,62818.0,0.0189427]
[1728818501577,0.003638,62819.0,62818.0,0.0249427]
[1728818502442,0.003638,62819.0,62818.0,0.013]
[1728818502659,0.003638,62819.0,62818.0,0.0249427]
[1728818502871,0.003638,62819.0,62818.0,0.013]
[1728818503077,0.003638,62819.0,62818.0,0.0249427]
[1728818503299,0.003638,62819.0,62818.0,0.013]
[1728818503521,0.003638,62819.0,62818.0,0.011]
[1728818503738,0.003638,62819.0,62818.0,0.013]
[1728818503958,0.003638,62819.0,62818.0,0.011]
[1728818504382,0.003638,62819.0,62818.0,0.013]
[1728818504612,0.002638,62819.0,62818.0,0.007]
[1728818505081,0.04301923,62819.0,62818.0,0.012]
[1728818505294,0.04201923,62819.0,62818.0,0.007]
[1728818505497,0.5,62810.0,62809.0,0.03193]
[1728818505712,0.54036458,62810.0,62809.0,0.0458727]
[1728818506363,0.54036458,62810.0,62809.0,0.0438727]
[1728818506789,0.54036458,62810.0,62809.0,0.0458727]
[1728818507001,0.54136458,62810.0,62809.0,0.0498727]
[1728818507676,0.54136458,62810.0,62809.0,0.0518727]
[1728818507888,0.54136458,62810.0,62809.0,0.0498727]
[1728818508305,0.54236458,62810.0,62809.0,0.0578727]
[1728818508814,0.54236458,62810.0,62809.0,0.04593]
[1728818509246,0.54236458,62810.0,62809.0,0.05783477]
[1728818509461,0.54236458,62810.0,62809.0,0.06973959]
[1728818509665,0.54236458,62810.0,62809.0,0.05783482]
[1728818509903,0.54236458,62810.0,62809.0,0.06973959]
[1728818510111,0.54236458,62810.0,62809.0,0.05983482]
[1728818510325,0.54236458,62810.0,62809.0,0.05983477]
[1728818510558,0.54236458,62810.0,62809.0,0.04793]
[1728818510773,0.54236458,62810.0,62809.0,0.05983477]
[1728818510997,0.54236458,62810.0,62809.0,0.04793]
[1728818511197,0.54236458,62810.0,62809.0,0.05983477]
[1728818511431,0.54236458,62810.0,62809.0,0.04593]
[1728818511634,0.54236458,62810.0,62809.0,0.05783477]
[1728818511866,0.54236458,62810.0,62809.0,0.04793]
[1728818512025,0.54236458,62810.0,62809.0,0.05983477]
[1728818512228,0.54236458,62810.0,62809.0,0.04793]
[1728818512425,0.54236458,62810.0,62809.0,0.05983477]
[1728818512630,0.54236458,62810.0,62809.0,0.04793]
[1728818512839,0.54236458,62810.0,62809.0,0.05983477]
[1728818513105,0.54236458,62810.0,62809.0,0.04793]
[1728818513350,0.54236458,62810.0,62809.0,0.05983477]
[1728818513572,0.54236458,62810.0,62809.0,0.04593]
[1728818513781,0.54236458,62810.0,62809.0,0.05783477]
[1728818514008,0.54236458,62810.0,62809.0,0.04593]
[1728818514211,0.54236458,62810.0,62809.0,0.05783477]
[1728818514410,0.54236458,62810.0,62809.0,0.04593]
[1728818514612,0.54236458,62810.0,62809.0,0.05783477]
[1728818514906,0.54236458,62810.0,62809.0,0.04593]
[1728818515044,0.54236458,62810.0,62809.0,0.05783477]
[1728818515247,0.54236458,62810.0,62809.0,0.04793]
[1728818515447,0.54236458,62810.0,62809.0,0.05783477]
[1728818515655,0.54236458,62810.0,62809.0,0.04793]
[1728818515854,0.54236458,62810.0,62809.0,0.05983477]
[1728818516064,0.54236458,62810.0,62809.0,0.04793]
[1728818516462,0.54236458,62810.0,62809.0,0.05983477]
[1728818516729,0.54236458,62810.0,62809.0,0.04793]
[1728818516942,0.54236458,62810.0,62809.0,0.02872671]
[1728818517157,0.54236458,62810.0,62809.0,0.048749]
[1728818517391,0.54236458,62810.0,62809.0,0.02872671]
[1728818517599,0.54236458,62810.0,62809.0,0.016819]
[1728818517802,0.54236458,62810.0,62809.0,0.02872671]
[1728818518004,0.54236458,62810.0,62809.0,0.016819]
[1728818518213,0.54236458,62810.0,62809.0,0.02872671]
[1728818519275,0.54236458,62810.0,62809.0,0.06065671]
[1728818519701,0.54236458,62810.0,62809.0,0.048749]
[1728818519909,0.54236458,62810.0,62809.0,0.06066057]
[1728818520527,0.54236458,62810.0,62809.0,0.02873057]
[1728818520740,0.54236458,62810.0,62809.0,0.06066057]
[1728818521211,0.54236458,62810.0,62809.0,0.048749]
[1728818521432,0.54236458,62810.0,62809.0,0.06066143]
[1728818522276,0.54236458,62810.0,62809.0,0.06066355]
[1728818522517,0.54236458,62810.0,62809.0,0.048749]
[1728818522771,0.54236458,62810.0,62809.0,0.06066351]
[1728818524576,0.54236458,62810.0,62809.0,0.05866351]
[1728818524848,0.54236458,62810.0,62809.0,0.06066351]